fUSD/lending_fUSD_20260405
["ID","MTS","AMOUNT","RATE_DAILY","PERIOD"]
[419841387,1775412642432,-150.0,0.00014982,2]
[419841388,1775412642442,-150.0,0.00014986,2]
[419841389,1775412642451,-150.0,0.00014987,2]
[419841390,1775412642460,-150.0,0.00014987,2]
[419841391,1775412642470,-150.0,0.00014989,2]
[419841392,1775412642479,-999.83756672,0.00015,2]
[419841393,1775412642488,-500.0,0.00015,2]
[419841394,1775412642497,-500.0,0.00015,2]
[419841395,1775412642507,-500.0,0.00015,2]
[419841396,1775412642515,-500.0,0.00015,2]
[419841397,1775412642524,-500.0,0.00015,2]
[419841398,1775412642533,-500.0,0.00015,2]
[419841399,1775412642542,-500.0,0.00015,2]
[419841400,1775412642551,-500.0,0.00015,2]
[419841401,1775412642560,-500.0,0.00015,2]
[419841402,1775412642570,-500.0,0.00015,2]
[419841403,1775412642579,-500.0,0.00015,2]
[419841405,1775412642589,-500.0,0.00015,2]
[419841406,1775412642599,-199.41,0.00015,2]
[419841407,1775412642608,-500.0,0.00015,2]
[419841408,1775412642618,-500.0,0.00015,2]
[419841409,1775412642627,-468.12,0.00015,2]
[419841411,1775412642636,-150.0,0.00015,2]
[419841413,1775412642645,-150.0,0.00015,2]
[419841415,1775412642655,-2067.27601646,0.00015,2]
[419841416,1775412642664,-8047.93487487,0.00015,2]
[419841417,1775412642672,-150.0,0.00015004,2]
[419841418,1775412642681,-150.0,0.00015008,2]
[419841420,1775412642691,-429.83194645,0.00015009,2]
[419841422,1775412642700,-150.0,0.00015011,2]
[419841424,1775412642709,-150.0,0.00015011,2]
[419841426,1775412642718,-478.16,0.00015012,2]
[419841427,1775412642727,-2000.0,0.00015015,2]
[419841428,1775412642736,-2000.0,0.00015015,2]
[419841429,1775412642745,-500.0,0.00015015,2]
[419841430,1775412642754,-150.0,0.00015022,2]
[419841431,1775412642763,-150.0,0.00015029,2]
[419841432,1775412642772,-150.0,0.00015029,2]
[419841433,1775412642781,-150.0,0.00015031,2]
[419841434,1775412642790,-150.0,0.00015032,2]
[419841435,1775412642799,-150.0,0.0001504,2]
[419841436,1775412642808,-150.0,0.0001504,2]
[419841437,1775412642818,-150.0,0.0001504,2]
[419841438,1775412642827,-150.0,0.0001504,2]
[419841439,1775412642836,-212.07,0.00015048,2]
[419841440,1775412642845,-150.0,0.00015053,2]
[419841441,1775412642855,-150.0,0.00015054,2]
[419841442,1775412642864,-150.0,0.00015057,2]
[419841443,1775412642873,-150.0,0.00015057,2]
[419841444,1775412642883,-150.0,0.00015058,2]
[419841445,1775412642892,-150.0,0.00015059,2]
[419841446,1775412642901,-500.0,0.0001506,2]
[419841447,1775412642910,-500.0,0.0001506,2]
[419841448,1775412642920,-500.0,0.0001506,2]
[419841449,1775412642929,-500.0,0.0001506,2]
[419841450,1775412642938,-500.0,0.0001506,2]
[419841451,1775412642947,-500.0,0.00015061,2]
[419841452,1775412642957,-500.0,0.00015061,2]
[419841453,1775412642966,-500.0,0.00015061,2]
[419841454,1775412642975,-500.0,0.00015061,2]
[419841455,1775412642984,-500.0,0.00015061,2]
[419841456,1775412642993,-500.0,0.00015061,2]
[419841457,1775412643003,-500.0,0.00015061,2]
[419841458,1775412643012,-627.70930647,0.00015061,2]
[419841459,1775412643021,-308.03873246,0.00015061,2]
[419841460,1775412643030,-212.07,0.00015067,2]
[419841461,1775412643039,-800.0,0.00015068,2]
[419841462,1775412643049,-150.0,0.00015069,2]
[419841463,1775412643058,-500.0,0.00015071,2]
[419841464,1775412643068,-150.0,0.00015074,2]
[419841465,1775412643078,-150.0,0.00015076,2]
[419841466,1775412643087,-150.0,0.00015076,2]
[419841467,1775412643097,-150.0,0.00015086,2]
[419841468,1775412643107,-150.0,0.00015086,2]
[419841469,1775412643116,-212.07,0.00015086,2]
[419841470,1775412643125,-150.0,0.00015093,2]
[419841471,1775412643135,-150.0,0.00015093,2]
[419841472,1775412643144,-150.0,0.00015095,2]
[419841473,1775412643154,-150.0,0.00015098,2]
[419841474,1775412643164,-150.0,0.00015099,2]
[419841475,1775412643174,-189.6302,0.000151,2]
[419841476,1775412643184,-150.0,0.00015104,2]
[419841477,1775412643193,-150.0,0.00015111,2]
[419841478,1775412643203,-150.0,0.00015114,2]
[419841479,1775412643212,-150.0,0.00015114,2]
[419841480,1775412643221,-150.0,0.00015116,2]
[419841481,1775412643230,-150.0,0.00015121,2]
[419841482,1775412643240,-150.0,0.00015127,2]
[419841483,1775412643250,-150.0,0.00015129,2]
[419841484,1775412643260,-150.0,0.00015137,2]
[419841486,1775412643269,-150.0,0.00015143,2]
[419841487,1775412643278,-150.0,0.00015143,2]
[419841488,1775412643288,-150.0,0.00015144,2]
[419841489,1775412643297,-150.0,0.00015147,2]
[419841490,1775412643307,-150.0,0.00015147,2]
[419841491,1775412643316,-150.0,0.00015153,2]
[419841492,1775412643326,-150.0,0.00015156,2]
[419841493,1775412643339,-150.0,0.00015158,2]
[419841494,1775412643349,-150.0,0.00015164,2]
[419841495,1775412643359,-150.0,0.00015166,2]
[419841496,1775412643368,-19345.37222185,0.00015167,2]
[419841497,1775412643378,-23399.55388289,0.00015167,2]
[419841498,1775412643388,-150.0,0.00015168,2]
[419841499,1775412643397,-150.0,0.00015171,2]
[419841500,1775412643407,-150.0,0.00015171,2]
[419841501,1775412643417,-500.0,0.00015173,2]
[419841502,1775412643426,-500.0,0.00015173,2]
[419841503,1775412643435,-500.0,0.00015173,2]
[419841504,1775412643444,-500.0,0.00015173,2]
[419841505,1775412643454,-500.0,0.00015173,2]
[419841506,1775412643463,-598.99606082,0.00015173,2]
[419841507,1775412643472,-500.0,0.00015173,2]
[419841508,1775412643482,-500.0,0.00015173,2]
[419841509,1775412643492,-500.0,0.00015173,2]
[419841510,1775412643503,-500.0,0.00015173,2]
[419841511,1775412643513,-500.0,0.00015173,2]
[419841512,1775412643522,-500.0,0.00015173,2]
[419841513,1775412643531,-500.0,0.00015173,2]
[419841514,1775412643540,-500.0,0.00015173,2]
[419841515,1775412643550,-500.0,0.00015173,2]
[419841516,1775412643560,-500.0,0.00015173,2]
[419841517,1775412643569,-500.0,0.00015173,2]
[419841518,1775412643578,-150.0,0.00015179,2]
[419841519,1775412643588,-150.0,0.00015182,2]
[419841520,1775412643599,-500.0,0.00015184,2]
[419841521,1775412643608,-254.55,0.00015184,2]
[419841522,1775412643619,-313.51,0.00015184,2]
[419841523,1775412643628,-150.0,0.00015185,2]
[419841524,1775412643638,-150.0,0.00015189,2]
[419841525,1775412643647,-500.0,0.00015199,2]
[419841526,1775412643657,-578.20924308,0.00015199,2]
[419841527,1775412643666,-500.0,0.00015199,2]
[419841528,1775412643676,-500.0,0.00015199,2]
[419841529,1775412643686,-200.0,0.00015199,2]
[419841530,1775412643695,-201.93286099,0.00015199,2]
[419841531,1775412643705,-9211.34798985,0.00015199,2]
[419841532,1775412643714,-695.39793187,0.00015199,2]
[419841533,1775412643724,-500.0,0.00015199,2]
[419841534,1775412643734,-1377.42282659,0.00015199,2]
[419841535,1775412643743,-500.0,0.00015199,2]
[419841536,1775412643753,-500.0,0.00015199,2]
[419841537,1775412643763,-500.0,0.00015199,2]
[419841538,1775412643772,-500.0,0.00015199,2]
[419841539,1775412643781,-500.0,0.00015199,2]
[419841540,1775412643791,-500.0,0.00015199,2]
[419841541,1775412643801,-500.0,0.00015199,2]
[419841542,1775412643810,-500.0,0.00015199,2]
[419841543,1775412643820,-500.0,0.00015199,2]
[419841544,1775412643830,-500.0,0.00015199,2]
[419841545,1775412643839,-1000.0,0.00015199,2]
[419841546,1775412643849,-1000.0,0.00015199,2]
[419841547,1775412643859,-1000.0,0.00015199,2]
[419841548,1775412643869,-1000.0,0.00015199,2]
[419841549,1775412643880,-1000.0,0.00015199,2]
[419841550,1775412643890,-1000.0,0.00015199,2]
[419841551,1775412643900,-1000.0,0.00015199,2]
[419841552,1775412643910,-1000.0,0.00015199,2]
[419841553,1775412643920,-1000.0,0.00015199,2]
[419841554,1775412643930,-1000.0,0.00015199,2]
[419841555,1775412643940,-1000.0,0.00015199,2]
[419841556,1775412643950,-1000.0,0.00015199,2]
[419841557,1775412643960,-3000.0,0.00015199,2]
[419841558,1775412643970,-3000.0,0.00015199,2]
[419841559,1775412643980,-3000.0,0.00015199,2]
[419841560,1775412643990,-3000.0,0.00015199,2]
[419841561,1775412643999,-3000.0,0.00015199,2]
[419841562,1775412644009,-3000.0,0.00015199,2]
[419841563,1775412644019,-3000.0,0.00015199,2]
[419841564,1775412644028,-174.61919141,0.00015199,2]
[419841565,1775412644038,-3000.0,0.00015199,2]
[419841566,1775412644048,-3000.0,0.00015199,2]
[419841567,1775412644058,-3000.0,0.00015199,2]
[419841568,1775412644068,-743.50770149,0.00015199,2]
[419841569,1775412644079,-3000.0,0.00015199,2]
[419841570,1775412644089,-3000.0,0.00015199,2]
[419841571,1775412644099,-151.0,0.00015199,2]
[419841572,1775412644110,-668.65185757,0.00015199,2]
[419841573,1775412644120,-151.0,0.00015199,2]
[419841574,1775412644130,-156.587,0.00015199,2]
[419841575,1775412644410,-195.25511793,0.00015199,2]
[419841576,1775412644449,-1500.0,0.00015199,2]
[419841577,1775412644459,-1500.0,0.00015199,2]
[419841578,1775412644469,-170.0,0.00015199,2]
[419841579,1775412644478,-279.9045709,0.00015199,2]
[419841580,1775412644487,-170.0,0.00015199,2]
[419841581,1775412644497,-1500.0,0.00015199,2]
[419841582,1775412644506,-170.0,0.00015199,2]
[419841583,1775412644516,-1500.0,0.00015199,2]
[419841584,1775412644525,-170.0,0.00015199,2]
[419841585,1775412644534,-1500.0,0.00015199,2]
[419841586,1775412644544,-170.0,0.00015199,2]
[419841587,1775412644554,-170.0,0.00015199,2]
[419841588,1775412644563,-170.0,0.00015199,2]
[419841589,1775412644572,-170.0,0.00015199,2]
[419841590,1775412644582,-170.0,0.00015199,2]
[419841591,1775412644592,-170.0,0.00015199,2]
[419841592,1775412644602,-170.0,0.00015199,2]
[419841593,1775412644611,-170.0,0.00015199,2]
[419841594,1775412644620,-5061.29326262,0.00015199,2]
[419841595,1775412644630,-150.0,0.000152,2]
[419841596,1775412644639,-150.0,0.000152,2]
[419841597,1775412644649,-150.0,0.000152,2]
[419841598,1775412644659,-150.0,0.000152,2]
[419841599,1775412644669,-150.0,0.000152,2]
[419841600,1775412644678,-150.0,0.000152,2]
[419841601,1775412644688,-150.0,0.000152,2]
[419841602,1775412644698,-150.0,0.000152,2]
[419841603,1775412644708,-150.0,0.000152,2]
[419841604,1775412644717,-150.0,0.000152,2]
[419841605,1775412644727,-150.0,0.00015211,2]
[419841606,1775412644738,-350.0,0.00015213,2]
[419841607,1775412644748,-500.0,0.00015214,2]
[419841608,1775412644758,-254.55,0.00015214,2]
[419841609,1775412644767,-313.51,0.00015214,2]
[419841610,1775412644778,-150.0,0.00015215,2]
[419841611,1775412644787,-150.0,0.00015218,2]
[419841612,1775412644797,-150.0,0.00015221,2]
[419841613,1775412644806,-3574.4,0.00015228,2]
[419841614,1775412644816,-150.0,0.00015229,2]
[419841615,1775412644826,-150.0,0.00015229,2]
[419841616,1775412644836,-150.0,0.00015232,2]
[419841617,1775412644845,-150.0,0.00015234,2]
[419841618,1775412644856,-504.0,0.00015234,3]
[419841619,1775412644865,-150.0,0.00015236,2]
[419841620,1775412644876,-150.0,0.00015242,2]
[419841621,1775412644886,-150.0,0.00015244,2]
[419841622,1775412644895,-150.0,0.00015247,2]
[419841623,1775412644905,-150.0,0.00015253,2]
[419841624,1775412644915,-150.0,0.00015253,2]
[419841625,1775412644925,-500.0,0.00015254,2]
[419841626,1775412644934,-9552.16786547,0.00015254,2]
[419841627,1775412644944,-151.0,0.00015254,2]
[419841628,1775412644953,-150.0,0.00015256,2]
[419841629,1775412644963,-150.0,0.00015257,2]
[419841630,1775412644973,-150.0,0.00015257,2]
[419841631,1775412644983,-150.0,0.00015263,2]
[419841632,1775412644992,-350.0,0.00015267,2]
[419841633,1775412645002,-150.0,0.00015271,2]
[419841634,1775412645011,-11910.1577215,0.00015271,2]
[419841635,1775412645021,-150.0,0.00015273,2]
[419841636,1775412645031,-150.0,0.00015279,2]
[419841637,1775412645040,-150.0,0.00015284,2]
[419841638,1775412645050,-150.0,0.00015286,2]
[419841639,1775412645060,-150.0,0.00015286,2]
[419841640,1775412645069,-150.0,0.00015289,2]
[419841641,1775412645079,-150.0,0.00015296,2]
[419841642,1775412645088,-1517.64,0.000153,2]
[419841643,1775412645097,-150.0,0.00015301,2]
[419841644,1775412645107,-150.0,0.00015302,2]
[419841645,1775412645117,-150.0,0.00015305,2]
[419841646,1775412645126,-150.0,0.00015307,2]
[419841647,1775412645136,-150.0,0.00015307,2]
[419841648,1775412645145,-500.0,0.00015309,2]
[419841649,1775412645155,-500.0,0.00015309,2]
[419841650,1775412645164,-500.0,0.00015309,2]
[419841651,1775412645174,-514.13,0.00015309,2]
[419841652,1775412645183,-500.0,0.00015309,2]
[419841653,1775412645193,-500.0,0.00015309,2]
[419841654,1775412645202,-9905.5980765,0.00015309,2]
[419841655,1775412645212,-500.0,0.00015309,2]
[419841656,1775412645221,-151.0,0.00015309,2]
[419841657,1775412645231,-7124.75,0.0001531,2]
[419841658,1775412645240,-150.99,0.0001531,2]
[419841659,1775412645249,-150.0,0.00015314,2]
[419841660,1775412645259,-150.0,0.00015314,2]
[419841661,1775412645269,-500.0,0.00015318,2]
[419841662,1775412645278,-8422.99193755,0.00015321,2]
[419841663,1775412645287,-871.95012592,0.00015321,2]
[419841664,1775412645297,-150.0,0.00015324,2]
[419841665,1775412645307,-150.0,0.00015324,2]
[419841666,1775412645317,-150.0,0.00015326,2]
[419841667,1775412645327,-150.0,0.00015331,2]
[419841668,1775412645337,-150.0,0.00015341,2]
[419841669,1775412645347,-150.0,0.00015342,2]
[419841670,1775412645357,-150.0,0.00015343,2]
[419841671,1775412645367,-150.0,0.00015343,2]
[419841672,1775412645376,-150.0,0.00015346,2]
[419841673,1775412645385,-150.0,0.00015347,2]
[419841674,1775412645396,-150.0,0.0001536,2]
[419841675,1775412645405,-150.0,0.0001536,2]
[419841676,1775412645414,-150.0,0.0001536,2]
[419841677,1775412645424,-150.0,0.0001536,2]
[419841678,1775412645433,-336.372262,0.00015364,2]
[419841679,1775412645442,-10272.10520533,0.00015364,2]
[419841680,1775412645452,-500.0,0.00015364,2]
[419841681,1775412645461,-151.0,0.00015364,2]
[419841682,1775412645471,-150.0,0.00015368,2]
[419841683,1775412645481,-150.0,0.00015369,2]
[419841684,1775412645491,-150.0,0.00015371,2]
[419841685,1775412645500,-150.0,0.00015371,2]
[419841686,1775412645510,-150.0,0.00015378,2]
[419841687,1775412645519,-364.40328381,0.00015378,2]
[419841688,1775412645529,-350.0,0.00015385,2]
[419841689,1775412645539,-150.0,0.00015389,2]
[419841690,1775412645549,-150.0,0.00015389,2]
[419841691,1775412645559,-150.0,0.00015392,2]
[419841692,1775412645569,-150.0,0.00015396,2]
[419841693,1775412645579,-150.0,0.000154,2]
[419841694,1775412645589,-150.0,0.000154,2]
[419841695,1775412645599,-512.60947705,0.000154,2]
[419841696,1775412645609,-150.0,0.00015411,2]
[419841697,1775412645619,-19345.37222185,0.00015411,2]
[419841699,1775412645629,-23399.55388289,0.00015411,2]
[419841700,1775412645638,-150.0,0.00015413,2]
[419841701,1775412645647,-150.0,0.00015413,2]
[419841702,1775412645657,-150.0,0.00015414,2]
[419841703,1775412645668,-150.0,0.00015418,2]
[419841704,1775412645677,-10652.17309792,0.00015419,2]
[419841705,1775412645687,-500.0,0.00015419,2]
[419841706,1775412645696,-151.0,0.00015419,2]
[419841707,1775412645706,-150.0,0.00015424,2]
[419841708,1775412645716,-150.0,0.00015429,2]
[419841709,1775412645726,-150.0,0.00015429,2]
[419841710,1775412645736,-150.0,0.00015431,2]
[419841711,1775412645745,-150.0,0.00015432,2]
[419841712,1775412645755,-500.0,0.00015433,2]
[419841713,1775412645764,-500.0,0.00015433,2]
[419841714,1775412645773,-500.0,0.00015433,2]
[419841715,1775412645782,-150.0,0.00015435,2]
[419841716,1775412645792,-150.0,0.00015437,2]
[419841717,1775412645801,-150.0,0.00015447,2]
[419841718,1775412645811,-150.0,0.00015449,2]
[419841719,1775412645820,-1078.5098704,0.00015452,2]
[419841720,1775412645829,-1071.37337594,0.00015452,2]
[419841721,1775412645838,-1003.24287138,0.00015452,2]
[419841722,1775412645848,-1116.74603038,0.00015452,2]
[419841723,1775412645858,-1010.87825473,0.00015452,2]
[419841724,1775412645867,-1042.5101903,0.00015452,2]
[419841725,1775412645877,-1250.59354664,0.00015452,2]
[419841726,1775412645887,-150.0,0.00015453,2]
[419841727,1775412645898,-150.0,0.00015457,2]
[419841728,1775412645909,-150.0,0.00015457,2]
[419841729,1775412645919,-150.0,0.00015459,2]
[419841730,1775412645929,-150.0,0.00015467,2]
[419841731,1775412645939,-150.0,0.00015467,2]
[419841732,1775412645949,-150.0,0.00015467,2]
[419841733,1775412645958,-150.0,0.00015474,2]
[419841734,1775412645968,-500.0,0.00015474,2]
[419841735,1775412645978,-11046.30350255,0.00015474,2]
[419841736,1775412645988,-151.0,0.00015474,2]
[419841737,1775412645998,-150.0,0.00015476,2]
[419841738,1775412646007,-150.0,0.00015482,2]
[419841739,1775412646017,-150.0,0.00015484,2]
[419841740,1775412646026,-150.0,0.00015486,2]
[419841741,1775412646037,-150.0,0.00015486,2]
[419841742,1775412646049,-150.0,0.00015488,2]
[419841743,1775412646058,-500.0,0.0001549,2]
[419841744,1775412646068,-150.0,0.00015495,2]
[419841745,1775412646078,-1661.34286454,0.000155,3]
[419841746,1775412646087,-5643.7200837,0.000155,3]
[419841747,1775412646097,-1231.52674065,0.000155,2]
[419841748,1775412646107,-150.0,0.00015502,2]
[419841749,1775412646117,-150.0,0.00015504,2]
[419841750,1775412646127,-150.0,0.00015505,2]
[419841751,1775412646137,-167.84,0.00015511,2]
[419841752,1775412646146,-150.0,0.00015514,2]
[419841753,1775412646156,-150.0,0.00015514,2]
[419841754,1775412646165,-150.0,0.00015516,2]
[419841755,1775412646175,-150.0,0.0001552,2]
[419841756,1775412646185,-150.0,0.0001552,2]
[419841757,1775412646196,-150.0,0.00015527,2]
[419841758,1775412646207,-500.0,0.00015529,2]
[419841759,1775412646217,-11455.01673214,0.00015529,2]
[419841760,1775412646227,-151.0,0.00015529,2]
[419841761,1775412646237,-150.0,0.00015529,2]
[419841762,1775412646248,-150.0,0.00015535,2]
[419841763,1775412646257,-150.0,0.00015537,2]
[419841764,1775412646268,-785.67,0.00015537,2]
[419841765,1775412646277,-150.0,0.00015538,2]
[419841766,1775412646287,-500.0,0.00015538,2]
[419841767,1775412646296,-500.0,0.00015538,2]
[419841768,1775412646306,-500.0,0.00015538,2]
[419841769,1775412646316,-500.0,0.00015538,2]
[419841770,1775412646325,-500.0,0.00015538,2]
[419841771,1775412646335,-500.0,0.00015538,2]
[419841772,1775412646345,-500.0,0.00015538,2]
[419841773,1775412646355,-500.0,0.00015538,2]
[419841774,1775412646364,-500.0,0.00015538,2]
[419841775,1775412646375,-500.0,0.00015538,2]
[419841776,1775412646386,-500.0,0.00015538,2]
[419841777,1775412646395,-234.4698975,0.00015538,2]
[419841778,1775412646405,-500.0,0.00015538,2]
[419841780,1775412646415,-500.0,0.00015538,2]
[419841781,1775412646426,-500.0,0.00015538,2]
[419841782,1775412646438,-500.0,0.00015538,2]
[419841783,1775412646448,-500.0,0.00015538,2]
[419841784,1775412646458,-500.0,0.00015538,2]
[419841785,1775412646468,-500.0,0.00015538,2]
[419841786,1775412646477,-514.13,0.00015538,2]
[419841787,1775412646486,-514.13,0.00015538,2]
[419841788,1775412646495,-514.13,0.00015538,2]
[419841789,1775412646505,-514.13,0.00015538,2]
[419841790,1775412646514,-514.13,0.00015538,2]
[419841791,1775412646523,-514.13,0.00015538,2]
[419841792,1775412646532,-500.0,0.00015538,2]
[419841793,1775412646541,-500.0,0.00015538,2]
[419841794,1775412646550,-500.0,0.00015538,2]
[419841795,1775412646560,-500.0,0.00015538,2]
[419841796,1775412646569,-500.0,0.00015538,2]
[419841797,1775412646578,-500.0,0.00015538,2]
[419841798,1775412646587,-500.0,0.00015538,2]
[419841799,1775412646597,-500.0,0.00015538,2]
[419841800,1775412646606,-500.0,0.00015538,2]
[419841801,1775412646616,-500.0,0.00015538,2]
[419841802,1775412646625,-500.0,0.00015538,2]
[419841803,1775412646634,-500.0,0.00015538,2]
[419841804,1775412646643,-500.0,0.00015538,2]
[419841805,1775412646653,-500.0,0.00015538,2]
[419841806,1775412646662,-500.0,0.00015538,2]
[419841808,1775412646671,-500.0,0.00015538,2]
[419841809,1775412646680,-500.0,0.00015538,2]
[419841810,1775412646689,-500.0,0.00015538,2]
[419841811,1775412646698,-500.0,0.00015538,2]
[419841812,1775412646708,-500.0,0.00015538,2]
[419841813,1775412646717,-500.0,0.00015538,2]
[419841814,1775412646727,-500.0,0.00015538,2]
[419841815,1775412646736,-500.0,0.00015538,2]
[419841816,1775412646746,-500.0,0.00015538,2]
[419841817,1775412646885,-500.0,0.00015538,2]
[419841818,1775412646895,-500.0,0.00015538,2]
[419841819,1775412646905,-500.0,0.00015538,2]
[419841820,1775412646915,-500.0,0.00015538,2]
[419841821,1775412646924,-500.0,0.00015538,2]
[419841822,1775412646934,-500.0,0.00015538,2]
[419841823,1775412646945,-150.0,0.00015543,2]
[419841824,1775412646955,-150.0,0.00015543,2]
[419841825,1775412646963,-150.0,0.00015549,2]
[419841826,1775412646973,-150.0,0.00015552,2]
[419841827,1775412646982,-150.0,0.00015556,2]
[419841828,1775412646991,-150.0,0.00015558,2]
[419841829,1775412647000,-150.0,0.00015564,2]
[419841830,1775412647009,-150.0,0.00015571,2]
[419841831,1775412647018,-150.0,0.00015571,2]
[419841832,1775412647027,-150.0,0.00015572,2]
[419841833,1775412647038,-150.0,0.00015573,2]
[419841834,1775412647049,-150.0,0.00015573,2]
[419841835,1775412647058,-150.0,0.00015579,2]
[419841836,1775412647067,-500.0,0.00015584,2]
[419841837,1775412647076,-1443.46790256,0.00015584,2]
[419841838,1775412647085,-151.0,0.00015584,2]
[419841839,1775412647094,-11910.1577215,0.00015586,2]
[419841840,1775412647104,-150.0,0.00015591,2]
[419841841,1775412647113,-150.0,0.00015593,2]
[419841842,1775412647123,-150.0,0.00015594,2]
[419841843,1775412647132,-150.0,0.000156,2]
[419841844,1775412647142,-150.0,0.000156,2]
[419841845,1775412647151,-150.0,0.000156,2]
[419841846,1775412647160,-150.0,0.000156,2]
[419841847,1775412647170,-150.0,0.000156,2]
[419841848,1775412647179,-1000.0,0.00015608,2]
[419841849,1775412647188,-1000.0,0.00015608,2]
[419841850,1775412647197,-918.3764967,0.00015608,2]
[419841851,1775412647206,-243.80429884,0.00015608,2]
[419841852,1775412647215,-1000.0,0.00015608,2]
[419841853,1775412647225,-1000.0,0.00015609,2]
[419841854,1775412647234,-1000.0,0.00015609,2]
[419841855,1775412647243,-361.43877969,0.00015609,2]
[419841856,1775412647252,-1000.0,0.00015609,2]
[419841857,1775412647262,-1000.0,0.00015609,2]
[419841858,1775412647271,-1000.0,0.00015609,2]
[419841859,1775412647280,-1000.0,0.00015609,2]
[419841860,1775412647289,-150.0,0.00015609,2]
[419841861,1775412647298,-150.0,0.00015616,2]
[419841862,1775412647307,-150.0,0.00015617,2]
[419841863,1775412647316,-1000.0,0.00015619,2]
[419841864,1775412647326,-150.0,0.00015621,2]
[419841865,1775412647335,-150.0,0.00015622,2]
[419841866,1775412647344,-150.0,0.00015624,2]
[419841867,1775412647353,-150.0,0.00015627,2]
[419841868,1775412647363,-150.0,0.00015627,2]
[419841869,1775412647371,-180.14446428,0.00015628,2]
[419841870,1775412647381,-150.0,0.00015629,2]
[419841871,1775412647390,-150.0,0.00015629,2]
[419841872,1775412647399,-733.77686062,0.00015634,2]
[419841873,1775412647408,-157.39168565,0.00015639,2]
[419841874,1775412647418,-500.0,0.00015639,2]
[419841875,1775412647427,-151.0,0.00015639,2]
[419841876,1775412647436,-150.0,0.00015639,2]
[419841877,1775412647445,-150.0,0.00015642,2]
[419841878,1775412647454,-150.0,0.00015644,2]
[419841879,1775412647463,-227.0,0.00015649,2]
[419841880,1775412647472,-150.0,0.00015651,2]
[419841881,1775412647482,-19345.37222185,0.00015656,2]
[419841882,1775412647490,-23399.55388289,0.00015656,2]
[419841883,1775412647499,-150.0,0.00015657,2]
[419841884,1775412647509,-150.0,0.00015657,2]
[419841885,1775412647518,-150.0,0.00015662,2]
[419841886,1775412647527,-150.0,0.00015662,2]
[419841887,1775412647536,-150.0,0.00015663,2]
[419841888,1775412647546,-2218.13051349,0.0001568,2]
[419841889,1775412647555,-150.0,0.0001568,2]
[419841890,1775412647563,-150.0,0.0001568,2]
[419841891,1775412647573,-150.0,0.0001568,2]
[419841892,1775412647582,-150.0,0.0001568,2]
[419841893,1775412647591,-150.0,0.00015684,2]
[419841894,1775412647600,-150.0,0.00015685,2]
[419841895,1775412647609,-150.0,0.00015686,2]
[419841896,1775412647619,-150.0,0.00015686,2]
[419841897,1775412647628,-500.0,0.00015694,2]
[419841898,1775412647638,-151.0,0.00015694,2]